{"text_format":"1","workbook":"xlsx","n_sheets":4,"sheets":["Mode d'emploi","Simulation","Décroissance du CO2","Données"],"not_rendered":{"charts":1,"images":1,"macros":1,"external_links":0,"defined_names":0,"comments":0,"pivot_tables":0},"unopened":[],"bounds":{"document_bytes":16777216,"sheet_cells":100000,"rows_first":2000,"rows_last":500,"rows_between":2000,"halvings":0,"cell_chars":16384,"cell_head_chars":4096},"cells_cut":0,"cells_raw":0,"read":"whole","date_system":"1900"}

{"sheet":"Mode d'emploi","index":0,"n_rows":0,"n_cols":0,"rows_kept":0,"cut":false,"hidden":false,"merged":[[0,0,0,9]]}

{"sheet":"Simulation","index":1,"n_rows":50,"n_cols":19,"rows_kept":50,"cut":false,"hidden":false,"merged":[[1,2,4,6]]}
["    SIMULATEUR DE CONCENTRATION EN DIOXYDE DE CARBONE (CO2 en ppm)"]
["Volume du local (en m3)",100,null,null,null,null,null,null,null,null,null,null,null,null,null,null,0,400,900]
["Nombre d'occupant(s)",4,null,null,null,null,null,null,null,null,null,null,null,null,null,null,0.5,400,900]
["Concentration initiale en CO2 (en ppm). Valeur par défaut fixée à 400 ppm modifiable",400,null,null,null,null,null,null,null,null,null,null,null,null,null,null,1,400,900]
["Type de zone à l'extérieur du bâtiment","Hors agglomération",null,null,null,null,null,null,null,null,null,null,null,null,null,null,1.5,400,900]
["Débit d'air neuf total (en m3/h)",160,null,null,null,null,null,null,null,null,null,null,null,null,null,null,2,400,900]
["Heure du début de présence des occupants ",8,null,"Concentration maximale observée (en ppm)",856.7259968157465,null,null,null,null,null,null,null,null,null,null,null,2.5,400,900]
["Début de la pause dans l'occupation ",12,null,"Concentration à la fin de la période d'observation (en ppm)",400.00217634969835,null,null,null,null,null,null,null,null,null,null,null,3,400,900]
["Fin de la  pause dans l'occupation ",14,null,null,null,null,null,null,null,null,null,null,null,null,null,null,3.5,400,900]
["Fin de la période d'occupation",17,null,null,null,null,null,null,null,null,null,null,null,null,null,null,4,400,900]
["Etanchéité du local","Courante : 15%",null,null,null,null,null,null,null,null,null,null,null,null,null,null,4.5,400,900]
[null,null,null,null,null,null,null,null,null,null,null,null,null,null,null,null,5,400,900]
[null,null,null,null,null,null,null,null,null,null,null,null,null,null,null,null,5.5,400,900]
[null,null,null,null,null,null,null,null,null,null,null,null,null,null,null,null,6,400,900]
[null,null,null,null,null,null,null,null,null,null,null,null,null,null,null,null,6.5,400,900]
[null,null,null,null,null,null,null,null,null,null,null,null,null,null,null,null,7,400,900]
[null,null,null,null,null,null,null,null,null,null,null,null,null,null,null,null,7.5,400,900]
[null,null,null,null,null,null,null,null,null,null,null,null,null,null,null,null,8,400,900]
[null,null,null,null,null,null,null,null,null,null,null,null,null,null,null,null,8.5,666.57736243268187,900]
[null,null,null,null,null,null,null,null,null,null,null,null,null,null,null,null,9,777.70334013693935,900]
[null,null,null,null,null,null,null,null,null,null,null,null,null,null,null,null,9.5,824.02753964148496,900]
[null,null,null,null,null,null,null,null,null,null,null,null,null,null,null,null,10,843.33833900694003,900]
[null,null,null,null,null,null,null,null,null,null,null,null,null,null,null,null,10.5,851.3882778320301,900]
[null,null,null,null,null,null,null,null,null,null,null,null,null,null,null,null,11,854.74399158894562,900]
[null,null,null,null,null,null,null,null,null,null,null,null,null,null,null,null,11.5,856.14286120311635,900]
[null,null,null,null,null,null,null,null,null,null,null,null,null,null,null,null,12,856.7259968157465,900]
[null,null,null,null,null,null,null,null,null,null,null,null,null,null,null,null,12.5,590.39172147229215,900]
[null,null,null,null,null,null,null,null,null,null,null,null,null,null,null,null,13,479.36707754300772,900]
[null,null,null,null,null,null,null,null,null,null,null,null,null,null,null,null,13.5,433.08512024055898,900]
[null,null,null,null,null,null,null,null,null,null,null,null,null,null,null,null,14,413.79193004478572,900]
[null,null,null,null,null,null,null,null,null,null,null,null,null,null,null,null,14.5,672.32669424641585,900]
[null,null,null,null,null,null,null,null,null,null,null,null,null,null,null,null,15,780.10001820861442,900]
[null,null,null,null,null,null,null,null,null,null,null,null,null,null,null,null,15.5,825.02662370296264,900]
[null,null,null,null,null,null,null,null,null,null,null,null,null,null,null,null,16,843.75481920663628,900]
[null,null,null,null,null,null,null,null,null,null,null,null,null,null,null,null,16.5,851.56189260923156,900]
[null,null,null,null,null,null,null,null,null,null,null,null,null,null,null,null,17,854.8163649956158,900]
[null,null,null,null,null,null,null,null,null,null,null,null,null,null,null,null,17.5,589.59566849491011,900]
[null,null,null,null,null,null,null,null,null,null,null,null,null,null,null,null,18,479.03523329108521,900]
[null,null,null,null,null,null,null,null,null,null,null,null,null,null,null,null,18.5,432.94678697548386,900]
[null,null,null,null,null,null,null,null,null,null,null,null,null,null,null,null,19,413.7342641605178,900]
[null,null,null,null,null,null,null,null,null,null,null,null,null,null,null,null,19.5,405.72529309675161,900]
[null,null,null,null,null,null,null,null,null,null,null,null,null,null,null,null,20,402.38665724356332,900]
[null,null,null,null,null,null,null,null,null,null,null,null,null,null,null,null,20.5,400.99490675883214,900]
[null,null,null,null,null,null,null,null,null,null,null,null,null,null,null,null,21,400.41473884087856,900]
[null,null,null,null,null,null,null,null,null,null,null,null,null,null,null,null,21.5,400.17288887084777,900]
[null,null,null,null,null,null,null,null,null,null,null,null,null,null,null,null,22,400.07207080388156,900]
[null,null,null,null,null,null,null,null,null,null,null,null,null,null,null,null,22.5,400.03004358086594,900]
[null,null,null,null,null,null,null,null,null,null,null,null,null,null,null,null,23,400.01252402779812,900]
[null,null,null,null,null,null,null,null,null,null,null,null,null,null,null,null,23.5,400.00522079152245,900]
[null,null,null,null,null,null,null,null,null,null,null,null,null,null,null,null,24,400.00217634969835,900]

{"sheet":"Décroissance du CO2","index":2,"n_rows":17,"n_cols":6,"rows_kept":17,"cut":false,"hidden":false,"merged":[]}
[]
[]
["Taux de CO2 mesuré à T0",null,null,null,1200,"ppm"]
["Taux CO2 de l'air neuf",null,null,null,500,"ppm"]
["Volume de la pièce",null,null,null,100,"m3"]
["Durée d'inoccupation du local",null,null,null,3,"heures"]
["Taux de CO2 mesuré après inoccupation du local",null,null,null,900,"ppm"]
["Taux de renouvellement (AN) par heure",null,null,null,{"$f":"(1/E6)*-LN((E7-E4)/(E3-E4))","v":0.18653859597847425},"V/h"]
["Débit d'air neuf équivalent",null,null,null,{"$f":"E8*E5","v":18.653859597847426},"m3/h"]
[]
["Taux d'infiltration d'air neuf (estimé)",null,null,null,0.15]
["Débit d'infiltration estimé",null,null,null,{"$f":"E5*E11","v":15},"m3/h"]
["Débit d'air neuf de la ventilation",null,null,null,{"$f":"E9-E12","v":3.6538595978474255},"m3/h"]
[]
["Si présence d'une centrale de traitement d'air CTA"]
["Débit mesuré de la ventilation",null,null,null,20,"m3/h"]
["Taux de réglage de la CTA (en air neuf)",null,null,null,{"$f":"E13/E16","v":0.18269297989237127}]

{"sheet":"Données","index":3,"n_rows":65,"n_cols":7,"rows_kept":65,"cut":false,"hidden":true,"merged":[]}
["Concentration extérieure en CO2",null,"Hors agglomération",null,null,"Etanchéité","Exceptionnelle : 3%"]
[null,null,"Urbaine circulée",null,null,null,"Standard BBC : 10%"]
[null,null,"Urbaine fortement circulée",null,null,null,"Courante : 15%"]
[null,null,"Urbaine très fortement circulée et/ou industrielle",null,null,null,"faible ou limitée : 30%"]
["Heures",0,"Nombre occupants",0]
[null,{"$f":"B5+0.5","v":0.5},null,{"$f":"D5+1","v":1}]
[null,{"$f":"B6+0.5","v":1},null,{"$f":"D6+1","v":2}]
[null,1.5,null,3]
[null,2,null,4]
[null,2.5,null,5]
[null,3,null,6]
[null,3.5,null,7]
[null,4,null,8]
[null,4.5,null,9]
[null,5,null,10]
[null,5.5,null,11]
[null,6,null,12]
[null,6.5,null,13]
[null,7,null,14]
[null,7.5,null,15]
[null,8,null,16]
[null,8.5,null,{"$f":"D21+1","v":17}]
[null,9,null,18]
[null,9.5,null,19]
[null,10,null,20]
[null,10.5,null,21]
[null,11,null,22]
[null,11.5,null,23]
[null,12,null,{"$f":"D28+1","v":24}]
[null,12.5,null,25]
[null,13,null,26]
[null,13.5,null,27]
[null,14,null,28]
[null,14.5,null,29]
[null,15,null,30]
[null,15.5]
[null,16]
[null,16.5]
[null,17]
[null,17.5]
[null,18]
[null,18.5]
[null,19]
[null,19.5]
[null,20]
[null,{"$f":"B45+0.5","v":20.5}]
[null,21]
[null,21.5]
[null,22]
[null,22.5]
[null,23]
[null,23.5]
[null,24]
[null,24.5]
[null,{"$f":"B54+0.5","v":25}]
[null,25.5]
[null,26]
[null,26.5]
[null,27]
[null,27.5]
[null,28]
[null,28.5]
[null,29]
[null,29.5]
[null,30]